fUSD/lending_fUSD_20260217
["ID","MTS","AMOUNT","RATE_DAILY","PERIOD"]
[405765305,1771286524453,-300.0,8.499e-05,2]
[405765306,1771286524483,-239.38,8.5e-05,2]
[405765307,1771286524513,-500.0,8.5e-05,2]
[405765308,1771286524543,-500.0,8.5e-05,2]
[405765309,1771286524573,-500.0,8.5e-05,2]
[405765310,1771286524603,-500.0,8.5e-05,2]
[405765311,1771286524633,-500.0,8.5e-05,2]
[405765312,1771286524664,-500.0,8.5e-05,2]
[405765313,1771286524694,-500.0,8.5e-05,2]
[405765314,1771286524726,-500.0,8.5e-05,2]
[405765315,1771286524758,-200.62096127,8.5e-05,2]
[405765316,1771286524789,-221.0,8.5e-05,2]
[405765317,1771286530302,-250.0,8.537e-05,2]
[405765318,1771286530336,-500.0,8.549e-05,2]
[405765319,1771286530368,-180.0,8.573e-05,2]
[405765320,1771286530400,-450.0,8.573e-05,2]
[405765321,1771286530433,-300.0,8.573e-05,2]
[405765322,1771286530464,-1200.0,8.573e-05,2]
[405765323,1771286530495,-300.0,8.573e-05,2]
[405765324,1771286530524,-300.0,8.573e-05,2]
[405765325,1771286530554,-150.0,8.574e-05,2]
[405765326,1771286729557,202.0,0.000172,60]
[405765329,1771286822634,-500.0,7.945e-05,2]
[405765330,1771286822666,-300.0,8.573e-05,2]
[405765331,1771286822699,-1200.0,8.573e-05,2]
[405765332,1771286822731,-415.71607037,8.574e-05,2]
[405765333,1771286822762,-150.0,8.574e-05,2]
[405765334,1771286822792,-300.0,8.574e-05,2]
[405765335,1771286822823,-300.0,8.574e-05,2]
[405765336,1771286822854,-297.20689573,8.574e-05,2]
[405765337,1771286823270,-9128.98392955,8.575e-05,2]
[405765338,1771286823302,-10000.01,8.575e-05,2]
[405765339,1771286823319,-10000.01,8.575e-05,2]
[405765340,1771286823365,-10000.01,8.575e-05,2]
[405765341,1771286823582,-10000.01,8.575e-05,2]
[405765342,1771286823712,-10000.01,8.575e-05,2]
[405765343,1771286823742,-10000.01,8.575e-05,2]
[405765344,1771286825472,-248.58085195,8.574e-05,2]
[405765345,1771286825523,-9502.8482961,8.575e-05,2]
[405765346,1771286825587,-10000.01,8.575e-05,2]
[405765347,1771286825713,-3997.09777435,8.575e-05,2]
[405765348,1771286825745,-415.71607035,8.583e-05,2]
[405765349,1771286825775,-257.4,8.592e-05,2]
[405765350,1771286825807,-243.86624025,8.592e-05,2]
[405765351,1771286825887,-171.8498301,8.592e-05,2]
[405765352,1771286828495,-500.0,8.592e-05,2]
[405765353,1771286828528,-210.77790493,8.592e-05,2]
[405765354,1771286828560,-500.0,8.592e-05,2]
[405765355,1771286828594,-500.0,8.592e-05,2]
[405765356,1771286828627,-500.0,8.592e-05,2]
[405765357,1771286828662,-500.0,8.592e-05,2]
[405765362,1771286846857,-264.03357298,8.574e-05,2]
[405765366,1771286888414,300.0,7.945e-05,2]
[405765367,1771286941200,300.0,8.592e-05,2]
[405765368,1771286942515,150.0,8.592e-05,2]
[405765369,1771286945739,407.66481207,8.592e-05,2]
[405765370,1771286959475,500.0,8.592e-05,2]
[405765371,1771286959525,500.0,8.592e-05,2]
[405765372,1771286959573,500.0,8.592e-05,2]
[405765373,1771286959685,500.0,8.592e-05,2]
[405765374,1771286959978,500.0,8.592e-05,2]
[405765375,1771286960058,500.0,8.592e-05,2]
[405765376,1771286960564,500.0,8.592e-05,2]
[405765377,1771286960609,500.0,8.592e-05,2]
[405765378,1771286960660,500.0,8.592e-05,2]
[405765379,1771286960712,500.0,8.592e-05,2]
[405765380,1771286960758,500.0,8.592e-05,2]
[405765381,1771286960814,500.0,8.592e-05,2]
[405765382,1771286960869,500.0,8.592e-05,2]
[405765383,1771286960912,500.0,8.592e-05,2]
[405765384,1771286960963,500.0,8.592e-05,2]
[405765385,1771286961014,500.0,8.592e-05,2]
[405765386,1771286961054,314.27804197,8.592e-05,2]
[405765387,1771286961088,185.72195803,8.592e-05,2]
[405765388,1771286961131,500.0,8.592e-05,2]
[405765389,1771286961233,500.0,8.592e-05,2]
[405765390,1771286961288,500.0,8.592e-05,2]
[405765391,1771286963067,288.10607226,8.592e-05,2]
[405765392,1771286973027,500.0,8.592e-05,2]
[405765393,1771286973073,500.0,8.592e-05,2]
[405765394,1771286973113,500.0,8.592e-05,2]
[405765395,1771286973157,500.0,8.592e-05,2]
[405765396,1771286973202,500.0,8.592e-05,2]
[405765397,1771286973248,500.0,8.592e-05,2]
[405765398,1771286973296,500.0,8.592e-05,2]
[405765399,1771286974350,288.10607226,8.592e-05,2]
[405765400,1771287001413,1200.0,8.592e-05,2]
[405765401,1771287002582,450.34152021,8.592e-05,2]
[405765402,1771287003397,221.0,8.593e-05,2]
[405765407,1771287032264,-704.25484084,8.593e-05,2]
[405765408,1771287032276,-1468.1368408,8.593e-05,2]
[405765409,1771287032287,-1013.08682692,8.593e-05,2]
[405765410,1771287032299,-3031.8631592,8.593e-05,2]
[405765411,1771287032310,-6273.48892545,8.593e-05,2]
[405765412,1771287032366,-607.56498033,8.593e-05,2]
[405765413,1771287032462,-333403.58732646,8.593e-05,2]
[405765415,1771287032472,-999.99,8.593e-05,2]
[405765417,1771287032482,-9999.99,8.593e-05,2]
[405765419,1771287032492,-9999.99,8.593e-05,2]
[405765421,1771287032501,-150.99,8.593e-05,2]
[405765423,1771287032511,-299.99,8.593e-05,2]
[405765425,1771287032521,-7816.44,8.593e-05,2]
[405765427,1771287032530,-499.99,8.593e-05,2]
[405765429,1771287032540,-1184.78,8.593e-05,2]
[405765431,1771287032550,-150.99,8.593e-05,2]
[405765433,1771287032560,-250.0,8.594e-05,2]
[405765435,1771287032570,-32845.8814,8.595e-05,2]
[405765437,1771287032579,-166.421882,8.726e-05,2]
[405765439,1771287032589,-193.65011307,8.74e-05,2]
[405765441,1771287032600,-10000.0,8.833e-05,2]
[405765443,1771287032610,-89690.31579753,8.913e-05,2]
[405765445,1771287032622,-92529.65311537,8.913e-05,2]
[405765447,1771287032637,-56806.81372869,8.913e-05,2]
[405765449,1771287032647,-881.0,9.005e-05,2]
[405765451,1771287032657,-176.0,9.185e-05,2]
[405765453,1771287032667,-413.0,9.25e-05,2]
[405765456,1771287032678,-1930.0,9.399e-05,2]
[405765458,1771287032688,-265.0,9.418e-05,2]
[405765460,1771287032699,-1680.0,9.452e-05,2]
[405765462,1771287032710,-250.0,9.453e-05,2]
[405765464,1771287032720,-250.0,9.453e-05,2]
[405765465,1771287032730,-1951.0,9.594e-05,2]
[405765468,1771287032740,-1508.0,9.613e-05,2]
[405765469,1771287032750,-487.0,9.632e-05,2]
[405765471,1771287032759,-81542.09,9.857e-05,2]
[405765473,1771287032773,-1633.52,9.936e-05,2]
[405765474,1771287032782,-558.0,9.965e-05,2]
[405765475,1771287032792,-151.0,0.0001,2]
[405765476,1771287032802,-151.0,0.0001,2]
[405765477,1771287032812,-151.0,0.0001,2]
[405765478,1771287032822,-151.0,0.0001,2]
[405765479,1771287032832,-151.0,0.0001,2]
[405765480,1771287032841,-151.0,0.0001,2]
[405765481,1771287032851,-151.0,0.0001,2]
[405765482,1771287032860,-151.0,0.0001,2]
[405765483,1771287032870,-151.0,0.0001,2]
[405765484,1771287032879,-151.0,0.0001,2]
[405765485,1771287032890,-151.0,0.0001,2]
[405765486,1771287032900,-151.0,0.0001,2]
[405765487,1771287032910,-151.0,0.0001,2]
[405765488,1771287032920,-151.0,0.0001,2]
[405765489,1771287032929,-500.0,0.0001,2]
[405765490,1771287032939,-151.0,0.0001,2]
[405765491,1771287032950,-500.0,0.0001,2]
[405765492,1771287032961,-151.0,0.0001,2]
[405765493,1771287032970,-500.0,0.0001,2]
[405765494,1771287032980,-151.0,0.0001,2]
[405765495,1771287032991,-500.0,0.0001,2]
[405765496,1771287033002,-151.0,0.0001,2]
[405765497,1771287033014,-500.0,0.0001,2]
[405765498,1771287033026,-151.0,0.0001,2]
[405765499,1771287033037,-500.0,0.0001,2]
[405765500,1771287033047,-151.0,0.0001,2]
[405765501,1771287033058,-500.0,0.0001,2]
[405765502,1771287033068,-151.0,0.0001,2]
[405765503,1771287033078,-500.0,0.0001,2]
[405765504,1771287033088,-151.0,0.0001,2]
[405765505,1771287033098,-500.0,0.0001,2]
[405765506,1771287033108,-151.0,0.0001,2]
[405765507,1771287033118,-500.0,0.0001,2]
[405765508,1771287033128,-500.0,0.0001,2]
[405765509,1771287033137,-151.0,0.0001,2]
[405765510,1771287033146,-500.0,0.0001,2]
[405765511,1771287033156,-500.0,0.0001,2]
[405765512,1771287033165,-151.0,0.0001,2]
[405765513,1771287033175,-500.0,0.0001,2]
[405765514,1771287033184,-151.0,0.0001,2]
[405765515,1771287033194,-500.0,0.0001,2]
[405765516,1771287033203,-151.0,0.0001,2]
[405765517,1771287033213,-500.0,0.0001,2]
[405765518,1771287033222,-151.0,0.0001,2]
[405765519,1771287033231,-500.0,0.0001,2]
[405765520,1771287033240,-151.0,0.0001,2]
[405765521,1771287033250,-500.0,0.0001,2]
[405765522,1771287033260,-151.0,0.0001,2]
[405765523,1771287033269,-500.0,0.0001,2]
[405765524,1771287033279,-151.0,0.0001,2]
[405765525,1771287033288,-500.0,0.0001,2]
[405765526,1771287033298,-151.0,0.0001,2]
[405765527,1771287033308,-500.0,0.0001,2]
[405765528,1771287033318,-151.0,0.0001,2]
[405765529,1771287033327,-500.0,0.0001,2]
[405765530,1771287033338,-8221.97728455,0.00010095,2]
[405765531,1771287033347,-500.0,0.0001018,2]
[405765532,1771287033357,-2351.0,0.00010397,2]
[405765533,1771287033367,-1035.09319629,0.00010442,2]
[405765534,1771287033376,-1881.51870185,0.00010828,2]
[405765535,1771287033386,-4273.48038215,0.000109,2]
[405765536,1771287033395,-166.66,0.00010959,2]
[405765537,1771287033404,-166.66,0.00011068,2]
[405765538,1771287033414,-166.66,0.00011178,2]
[405765539,1771287033424,-7528.44,0.00011233,2]
[405765540,1771287033434,-166.66,0.00011288,2]
[405765541,1771287033443,-250.0,0.00011355,2]
[405765542,1771287033453,-166.66,0.00011397,2]
[405765543,1771287033463,-3292.0,0.00011437,2]
[405765544,1771287033472,-166.66,0.00011507,2]
[405765545,1771287033482,-176.0,0.0001258,2]
[405765546,1771287033492,-4273.48038215,0.00012767,2]
[405765547,1771287033501,-18381.81,0.00013164,2]
[405765548,1771287033512,-150.0,0.00013199,2]
[405765549,1771287033521,-843.15587,0.00013439,2]
[405765550,1771287033530,-1328.11977069,0.00013439,2]
[405765551,1771287033543,-1279.15076531,0.00013439,2]
[405765552,1771287033552,-524.29618187,0.00013698,2]
[405765553,1771287033563,-500.0,0.00013698,2]
[405765554,1771287033573,-500.0,0.00013698,2]
[405765555,1771287033583,-500.0,0.00013698,2]
[405765556,1771287033593,-638.32920869,0.00013698,2]
[405765557,1771287033602,-500.0,0.00013698,2]
[405765558,1771287033613,-500.0,0.00013698,2]
[405765559,1771287033623,-500.0,0.00013698,2]
[405765560,1771287033634,-500.0,0.00013698,2]
[405765561,1771287033643,-500.0,0.00013698,2]
[405765562,1771287033653,-500.0,0.00013698,2]
[405765563,1771287033662,-500.0,0.00013698,2]
[405765564,1771287033672,-500.0,0.00013698,2]
[405765565,1771287033682,-500.0,0.00013698,2]
[405765566,1771287033692,-500.0,0.00013698,2]
[405765567,1771287033703,-500.0,0.00013698,2]
[405765568,1771287033713,-500.0,0.00013698,2]
[405765569,1771287033723,-500.0,0.00013698,2]
[405765570,1771287033734,-500.0,0.00013698,2]
[405765571,1771287033744,-397.83762325,0.00013698,2]
[405765572,1771287033754,-500.0,0.00013698,2]
[405765573,1771287033764,-500.0,0.00013698,2]
[405765574,1771287033773,-500.0,0.00013698,2]
[405765575,1771287033783,-500.0,0.00013698,2]
[405765576,1771287033793,-500.0,0.00013698,2]
[405765577,1771287033803,-500.0,0.00013698,2]
[405765578,1771287033812,-500.0,0.00013698,2]
[405765579,1771287033822,-500.0,0.00013698,2]
[405765580,1771287033831,-500.0,0.00013698,2]
[405765581,1771287033841,-500.0,0.00013698,2]
[405765582,1771287033850,-500.0,0.00013698,2]
[405765583,1771287033860,-500.0,0.00013698,2]
[405765584,1771287033870,-652.87,0.00013699,2]
[405765585,1771287033879,-652.87,0.00014384,2]
[405765586,1771287033889,-226.08970435,0.00014473,2]
[405765587,1771287033898,-239.74479814,0.00014473,2]
[405765588,1771287033908,-693.3919763,0.00014756,2]
[405765589,1771287033918,-719.04747942,0.00014811,2]
[405765590,1771287033927,-745.65223616,0.00014866,2]
[405765591,1771287033937,-773.2413689,0.00014921,2]
[405765592,1771287033947,-801.85129955,0.00014976,2]
[405765593,1771287033960,-831.51979763,0.00015031,2]
[405765594,1771287033970,-652.87,0.00015068,2]
[405765595,1771287033979,-862.28603014,0.00015086,2]
[405765596,1771287033989,-894.19061326,0.00015141,2]
[405765597,1771287033999,-927.27566595,0.00015196,2]
[405765598,1771287034009,-961.58486559,0.00015251,2]
[405765599,1771287034019,-997.16350561,0.00015306,2]
[405765600,1771287034030,-6493.747,0.00015355,2]
[405765601,1771287034039,-515.974,0.00015355,2]
[405765602,1771287034048,-272.95,0.00015387,2]
[405765603,1771287034058,-22794.93,0.00015538,2]
[405765604,1771287034068,-652.87,0.00015753,2]
[405765605,1771287034078,-500.0,0.00015793,2]
[405765606,1771287034088,-237.18069135,0.00015793,2]
[405765607,1771287034097,-150.0,0.00015793,2]
[405765608,1771287034170,-150.0,0.00015793,2]
[405765609,1771287034182,-500.0,0.00015848,2]
[405765610,1771287034192,-150.0,0.00015848,2]
[405765611,1771287034202,-150.0,0.00015848,2]
[405765612,1771287034213,-151.2048801,0.000159,2]
[405765613,1771287034222,-500.0,0.00015903,2]
[405765614,1771287034231,-150.0,0.00015903,2]
[405765615,1771287034241,-208.0,0.00015903,2]
[405765616,1771287034251,-160.0,0.00015915,2]
[405765617,1771287034261,-173.53171403,0.00015915,2]
[405765618,1771287034271,-152.3,0.00015948,2]
[405765619,1771287034281,-500.0,0.00015957,2]
[405765620,1771287034291,-150.0,0.00015957,2]
[405765621,1771287034300,-5000.0,0.0001596,2]
[405765622,1771287034310,-500.0,0.00016012,2]
[405765623,1771287034320,-150.0,0.00016012,2]
[405765624,1771287034329,-332.0,0.00016067,2]
[405765625,1771287034339,-213.0,0.00016067,2]
[405765626,1771287034350,-652.87,0.00016438,2]
[405765627,1771287034359,-9890.9726294,0.00016712,2]
[405765628,1771287034368,-4273.48038215,0.00017041,2]
[405765629,1771287034377,-350.0,0.0001715,2]
[405765630,1771287034386,-502.0,0.000173,2]
[405765631,1771287034395,-1063.57363834,0.00017499,2]
[405765632,1771287034404,-1033.01802743,0.00017499,2]
[405765633,1771287034413,-1019.42844104,0.00017499,2]
[405765634,1771287034422,-1051.02204413,0.00017499,2]
[405765635,1771287034430,-1121.68319162,0.00017499,2]
[405765636,1771287034440,-1080.68991301,0.00017499,2]
[405765637,1771287034449,-1146.98062844,0.00017499,2]
[405765638,1771287034459,-1067.80743607,0.00017499,2]
[405765639,1771287034468,-160.42259811,0.00017531,2]
[405765640,1771287034478,-350.0,0.00017541,2]
[405765641,1771287034487,-350.0,0.00017604,2]
[405765642,1771287034497,-1134.00533634,0.0001764,2]
[405765643,1771287034506,-1052.04969758,0.0001764,2]
[405765644,1771287034522,-1024.93557939,0.0001764,2]
[405765645,1771287034531,-1020.36755578,0.0001764,2]
[405765646,1771287034540,-1112.54764351,0.0001764,2]
[405765647,1771287034550,-1387.37673342,0.0001764,2]
[405765648,1771287034559,-350.0,0.00017649,2]
[405765649,1771287034568,-500.0,0.00017808,2]
[405765650,1771287034578,-185.23753846,0.00017808,2]
[405765651,1771287034587,-500.0,0.00017808,2]
[405765652,1771287034596,-500.0,0.00017808,2]
[405765653,1771287034605,-450.0,0.00017808,2]
[405765654,1771287034613,-802.44142686,0.00017808,2]
[405765655,1771287034623,-353.93644177,0.000179,2]
[405765656,1771287034633,-593.752035,0.000179,2]
[405765657,1771287034642,-4586.7907,0.000179,2]
[405765658,1771287034651,-5000.0,0.000179,2]
[405765659,1771287034661,-422.11125824,0.000179,3]
[405765660,1771287034670,-1275.26610591,0.000179,2]
[405765661,1771287034680,-7593.6446628,0.000179,2]
[405765662,1771287034691,-1303.57999845,0.000179,2]
[405765663,1771287034700,-2083.39267499,0.000179,2]
[405765664,1771287034710,-1967.363696,0.00017919,7]
[405765665,1771287034722,-6083.631251,0.00017919,7]
[405765666,1771287034733,-152.3,0.00017942,2]
[405765667,1771287034742,-500.0,0.00017973,2]
[405765668,1771287034753,-288.86774008,0.00017973,2]
[405765669,1771287034763,-500.0,0.00017973,2]
[405765670,1771287034773,-211.43875265,0.00017973,2]
[405765671,1771287034782,-500.0,0.00017973,2]
[405765672,1771287034792,-500.0,0.00017973,2]
[405765673,1771287034801,-310.0989522,0.00017973,2]
[405765674,1771287034810,-500.0,0.00017973,2]
[405765675,1771287034819,-504.11574809,0.00017973,2]
[405765676,1771287034829,-295.43107867,0.00017999,2]
[405765677,1771287034838,-500.0,0.00017999,2]
[405765678,1771287034847,-500.0,0.00017999,2]
[405765679,1771287034857,-500.0,0.00017999,2]
[405765680,1771287034869,-500.0,0.00017999,2]
[405765681,1771287034879,-500.0,0.00017999,2]
[405765682,1771287034888,-500.0,0.00017999,2]
[405765683,1771287034897,-500.0,0.00017999,2]
[405765684,1771287034906,-500.0,0.00017999,2]
[405765685,1771287034915,-500.0,0.00017999,2]
[405765686,1771287034924,-500.0,0.00017999,2]
[405765687,1771287034933,-500.0,0.00017999,2]
[405765688,1771287034942,-500.0,0.00017999,2]
[405765689,1771287034954,-500.0,0.00017999,2]
[405765690,1771287034964,-500.0,0.00017999,2]
[405765691,1771287034973,-500.0,0.00017999,2]
[405765692,1771287034983,-500.0,0.00017999,2]
[405765693,1771287034994,-500.0,0.00017999,2]
[405765694,1771287035003,-500.0,0.00017999,2]
[405765695,1771287035012,-500.0,0.00017999,2]
[405765696,1771287035022,-500.0,0.00017999,2]
[405765697,1771287035031,-500.0,0.00017999,2]
[405765698,1771287035040,-500.0,0.00017999,2]
[405765699,1771287035050,-500.0,0.00017999,2]
[405765700,1771287035060,-500.0,0.00017999,2]
[405765701,1771287035072,-500.0,0.00017999,2]
[405765702,1771287035081,-500.0,0.00017999,2]
[405765703,1771287035091,-500.0,0.00017999,2]
[405765704,1771287035100,-500.0,0.00017999,2]
[405765705,1771287035109,-500.0,0.00017999,2]
[405765706,1771287035119,-500.0,0.00017999,2]
[405765707,1771287035128,-517.86338915,0.00017999,2]
[405765708,1771287035137,-182265.67366083,0.00018,2]
[405765709,1771287035660,-1254.41808677,0.00018,2]
[405765710,1771287035673,-408.2574532,0.00018,2]
[405765711,1771287035685,-323.3292545,0.00018,2]
[405765712,1771287035697,-702.8148,0.00018,2]
[405765714,1771287039196,-2001.72964785,0.00017999,2]
[405765715,1771287039206,-3733.16352661,0.00018,2]
[405765735,1771287040564,-454.06587936,0.00018,2]
[405765736,1771287040794,-850.10682554,0.00018,2]
[405765737,1771287040805,-1122.78527406,0.00018,2]
[405765738,1771287040818,-694.46611008,0.00018,2]
[405765739,1771287040832,-484.84367154,0.00018,2]
[405765740,1771287041053,-2114732.84878862,0.00018,2]
[405765741,1771287041064,-500.0,0.00018,2]
[405765742,1771287041076,-500.0,0.00018,2]
[405765743,1771287041097,-587.0,0.00018,2]
[405765744,1771287041114,-200.0,0.00018,2]
[405765745,1771287041124,-2000.0,0.00018,2]
[405765746,1771287041134,-2000.0,0.00018,2]
[405765747,1771287041145,-2000.0,0.00018,2]
[405765748,1771287041156,-2000.0,0.00018,2]
[405765749,1771287041166,-2000.0,0.00018,2]
[405765750,1771287041177,-2000.0,0.00018,2]
[405765751,1771287041187,-151.0,0.00018,2]
[405765752,1771287041198,-668.32,0.00018,2]
[405765753,1771287041209,-668.32,0.00018,2]
[405765754,1771287041220,-668.32,0.00018,2]
[405765755,1771287041229,-668.32,0.00018,2]
[405765756,1771287041240,-668.32,0.00018,2]
[405765757,1771287041249,-668.32,0.00018,2]
[405765758,1771287041259,-668.32,0.00018,2]
[405765759,1771287041270,-668.32,0.00018,2]
[405765760,1771287041280,-668.32,0.00018,2]
[405765761,1771287041290,-668.32,0.00018,2]
[405765762,1771287041301,-668.32,0.00018,2]
[405765763,1771287041310,-668.32,0.00018,2]
[405765764,1771287041320,-668.32,0.00018,2]
[405765765,1771287041330,-668.32,0.00018,2]
[405765766,1771287041340,-668.32,0.00018,2]
[405765767,1771287041350,-668.32,0.00018,2]
[405765768,1771287041360,-668.32,0.00018,2]
[405765769,1771287041370,-668.32,0.00018,2]
[405765770,1771287041380,-668.32,0.00018,2]
[405765771,1771287041389,-668.32,0.00018,2]
[405765772,1771287041401,-668.32,0.00018,2]
[405765773,1771287041413,-668.32,0.00018,2]
[405765774,1771287041424,-668.32,0.00018,2]
[405765775,1771287041435,-668.32,0.00018,2]
[405765776,1771287041447,-1283.94,0.00018,2]
[405765777,1771287041459,-502.0,0.00018004,2]
[405765778,1771287041470,-350.0,0.00018041,2]
[405765779,1771287041483,-553.0,0.00018055,2]
[405765780,1771287041494,-500.0,0.00018055,2]
[405765781,1771287041505,-502.0,0.00018055,2]
[405765782,1771287041515,-500.0,0.00018082,2]
[405765783,1771287041525,-558.0,0.00018082,2]
[405765784,1771287041537,-350.0,0.00018097,2]
[405765785,1771287041548,-500.0,0.00018137,2]
[405765786,1771287041558,-500.0,0.00018137,2]
[405765787,1771287041570,-500.0,0.00018137,2]
[405765788,1771287041580,-595.0,0.00018137,2]
[405765789,1771287041591,-331.0,0.00018137,2]
[405765790,1771287041601,-300.0,0.00018137,2]
[405765791,1771287041611,-301.0,0.00018137,2]
[405765792,1771287041622,-500.0,0.00018219,2]
[405765793,1771287041631,-500.0,0.00018219,2]
[405765794,1771287041641,-500.0,0.00018219,2]
[405765795,1771287041652,-230.0,0.00018219,2]
[405765796,1771287041664,-221.0,0.00018219,2]
[405765797,1771287041675,-200.0,0.00018219,2]
[405765798,1771287041686,-200.0,0.00018219,2]
[405765799,1771287041697,-771.1,0.000183,7]
[405765800,1771287041709,-500.0,0.00018355,2]
[405765801,1771287041721,-500.0,0.00018355,2]
[405765802,1771287041734,-500.0,0.00018355,2]
[405765803,1771287041744,-83937.61,0.00018356,2]
[405765804,1771287041756,-500.0,0.00018521,2]
[405765805,1771287041769,-1009.85107778,0.00018521,2]
[405765806,1771287041779,-1000.0,0.00018521,2]
[405765807,1771287041790,-1000.0,0.00018521,2]
[405765808,1771287041801,-1000.0,0.00018521,2]
[405765809,1771287041812,-350.0,0.00018572,2]
[405765810,1771287041822,-502.0,0.00018709,3]
[405765811,1771287041832,-235.20041031,0.00018802,2]
[405765812,1771287041842,-350.0,0.00018938,2]
[405765813,1771287041852,-4030.8275389,0.00019,2]
[405765814,1771287041862,-378.26185552,0.00019,2]
[405765815,1771287041872,-350.0,0.00019,2]
[405765816,1771287041882,-1500.0,0.00019068,2]
[405765817,1771287041893,-1500.0,0.00019068,2]
[405765818,1771287041903,-745.11580679,0.00019068,2]
[405765819,1771287041912,-7593.64466279,0.00019142,2]
[405765820,1771287041922,-151.0,0.00019178,2]
[405765821,1771287041931,-350.0,0.00019187,2]
[405765822,1771287041941,-151.0,0.00019233,2]
[405765823,1771287041953,-350.0,0.00019238,2]
[405765824,1771287041963,-151.0,0.00019288,2]
[405765825,1771287041973,-500.0,0.00019337,2]
[405765826,1771287041982,-413.0,0.00019337,2]
[405765827,1771287041994,-151.0,0.00019343,2]
[405765828,1771287042003,-151.0,0.00019398,2]
[405765829,1771287042013,-502.0,0.00019413,3]
[405765830,1771287042024,-151.0,0.00019453,2]
[405765831,1771287042034,-151.0,0.00019508,2]
[405765832,1771287042043,-151.0,0.00019563,2]
[405765833,1771287042053,-2000.0,0.00019616,2]
[405765834,1771287042063,-657.59359122,0.00019616,2]
[405765835,1771287042072,-151.0,0.00019618,2]
[405765836,1771287042082,-151.0,0.00019673,2]
[405765837,1771287042091,-350.0,0.00019687,2]
[405765838,1771287042101,-160.42259811,0.00019722,2]
[405765839,1771287042110,-151.0,0.00019728,2]
[405765840,1771287042121,-151.0,0.00019783,2]
[405765841,1771287042130,-1812.61491969,0.00019796,2]
[405765842,1771287042139,-500.0,0.00019815,2]
[405765843,1771287042149,-151.0,0.00019838,2]
[405765844,1771287042158,-151.0,0.00019893,2]
[405765845,1771287042169,-250.0,0.00019918,35]
[405765846,1771287042179,-250.0,0.00019918,35]
[405765847,1771287042188,-250.0,0.00019918,35]
[405765848,1771287042198,-250.0,0.00019918,35]
[405765849,1771287042207,-250.0,0.00019918,35]
[405765850,1771287042217,-250.0,0.00019918,35]
[405765851,1771287042226,-264.0,0.00019918,35]
[405765852,1771287042236,-152.3,0.00019936,2]
[405765853,1771287042245,-264.89,0.00019948,2]
[405765854,1771287042255,-360.38217355,0.0002,30]
[405765855,1771287042264,-62281.15880025,0.0002,30]
[405765856,1771287042274,-16076.51567268,0.0002,2]
[405765857,1771287042285,-22542.82519272,0.0002,14]
[405765858,1771287042294,-1000.0,0.0002,7]
[405765859,1771287042303,-260.02819865,0.0002,30]
[405765860,1771287042313,-154.68408518,0.0002,2]
[405765861,1771287042324,-2464.68,0.0002,2]
[405765862,1771287042670,-3950.0,0.0002,2]
[405765863,1771287042687,-1297.52890916,0.0002,2]
[405765864,1771287042700,-2870.24543888,0.0002,2]
[405765865,1771287042710,-12953.88547041,0.0002,2]
[405765866,1771287042720,-250.0,0.0002,35]
[405765867,1771287042729,-250.0,0.0002,35]